Cogmind - Beta 15 @@@ ROGUE MODE // 2025.07.19 @ 13:14:17 Player: EX-OCT Result: Destroyed by K1-2ML(R) with Subdweller Beam Cannon Performance ------------- Evolutions (0) 0 Regions Visited (2) 400 Robots Destroyed (25) 125 Value Destroyed (695) 695 Prototype IDs (0) 0 Alien Tech Used (0) 0 Bonus (0) 0 TOTAL SCORE: 1220 Bonus ------- None Cogmind --------- Core Integrity 0/250 Matter 300/300 Energy 250/250 System Corruption 0% Temperature Cool (9) Movement Rolling (215) Ox9 Location -10/Subcaves Parts ------- > --- POWER (1) -------- Ion Engine > --- PROPULSION (2) --- Light Treads Wheel > --- UTILITY (2) ------ Improved Heat Sink Huge Storage Unit > --- WEAPON (2) ------- Beam Cannon Beam Cannon > --- INVENTORY (25) --- Ion Engine Light Treads Light Treads Wheel Wheel Wheel Heat Sink Improved Heat Sink Improved Heat Sink Medium Storage Unit Hacking Suite Beam Cannon Assault Rifle Grenade Launcher Peak State ------------ > --- POWER ------------ Ion Engine > --- PROPULSION ------- Wheel Wheel > --- UTILITY ---------- Improved Heat Sink Huge Storage Unit > --- WEAPON ----------- Beam Cannon Beam Cannon > --- INVENTORY -------- Ion Engine Ion Engine Light Treads Light Treads Light Treads Light Treads Wheel Wheel Wheel Heat Sink Improved Heat Sink Medium Storage Unit Hacking Suite Beam Cannon Assault Rifle Grenade Launcher [Rating: 11] Favorites ----------- Power Ion Engine Engine Ion Engine Propulsion Wheel Treads Light Treads Wheel Wheel Utility Improved Heat Sink Device Improved Heat Sink Storage Huge Storage Unit Weapon Beam Cannon Energy Cannon Beam Cannon Ballistic Gun Assault Rifle Build | -11 -10 -10 ------- Run | Yrd Mat Sub Slots Evolved . | . . . Power . | . . . Propulsion . | . . . Utility . | . . . Weapon . | . . . Parts Attached 23 | 6 13 4 Power 3 | 1 1 1 Engine 3 | 1 1 1 Core . | . . . Reactor . | . . . Propulsion 8 | 2 4 2 Treads 4 | 1 2 1 Leg . | . . . Wheel 4 | 1 2 1 Hover . | . . . Flight . | . . . Utility 6 | 1 4 1 Device 4 | 1 2 1 Storage 2 | . 2 . Processor . | . . . Hackware . | . . . Protection . | . . . Artifact . | . . . Weapon 6 | 2 4 . Energy Gun . | . . . Energy Cannon 3 | . 3 . Ballistic Gun 3 | 2 1 . Ballistic Cannon . | . . . Launcher . | . . . Special Weapon . | . . . Impact Weapon . | . . . Slashing Weapon . | . . . Piercing Weapon . | . . . Special Melee Weapon . | . . . Unidentified Prototypes . | . . . Parts Lost 5 | . 2 3 Power 1 | . . 1 Propulsion 3 | . 1 2 Utility . | . . . Weapon 1 | . 1 . Highest Loss Streak 2 | . 2 1 To Critical Strikes . | . . . Average Backups 10 | 2 9 14 Power 1 | . 1 1 Propulsion 4 | 1 3 5 Utility 2 | . 2 4 Weapon 1 | . 1 3 Tool/Special . | . . . Unused Backups 6 | . 1 5 Power . | . . . Propulsion 3 | . 1 2 Utility 2 | . . 2 Weapon 1 | . . 1 Tool/Special . | . . . Average Slot Usage (%) 98 | . 98 99 Engine 14 | . 14 14 Treads 11 | . 10 14 Wheel 16 | . 17 13 Device 14 | . 14 14 Storage 13 | . 12 14 Energy Cannon 19 | . 15 28 Ballistic Gun 8 | . 12 . Peak Build Rating 11 | 6 11 11 Average Rating 9 | 4 8 10 On Entrance 5 | . 6 11 Naked Turns . | . . . Heaviest Build 92 | 10 92 92 Greatest Support 20 | 20 20 10 Greatest Overweight (x) 9 | . 9 9 Average Overweight (x) 3 | . 2 8 Largest Inventory Capacity 25 | 5 25 25 Average Capacity 17 | 5 14 25 Most Carried 16 | 4 16 16 Average Carried 10 | 2 9 14 Final Capacity 25 | 5 25 25 Final Carried 16 | 4 16 14 Class Distribution -------------------- 100% | Mutant Dominant Class ---------------- Mutant | -10/Materials Mutant | -10/Subcaves Resources | -11 -10 -10 ----------- Run | Yrd Mat Sub Matter Collected 649 | 307 278 64 Remotely . | . . . Salvage Created 910 | 106 615 189 Parts 41 | 8 31 2 Haulers Intercepted . | . . . Recyclers Shooed 1 | 1 . . Parts Field Recycled . | . . . Retrieved Matter . | . . . Parts Self-Destructed 6 | . . 6 Prevented . | . . . Kills | -11 -10 -10 ------- Run | Yrd Mat Sub Combat Hostiles Destroyed 16 | . 12 4 Guns 3 | . 3 . Cannons 12 | . 9 3 Classes Destroyed 7 | 2 4 1 Worker 3 | . 3 . Tunneler 2 | 2 . . Recycler 1 | 1 . . Operator 2 | . 2 . Watcher 1 | . 1 . Grunt 13 | . 12 1 Subdweller 3 | . . 3 Best Kill Streak 4 | 3 4 2 Combat Bots Only 4 | . 4 2 Max Kills in Single Turn 2 | 1 2 1 Gunslinging . | . . . Exploded . | . . . Melee . | . . . Uniques/NPCs Destroyed . | . . . Combat | -11 -10 -10 -------- Run | Yrd Mat Sub Hostile Shots Fired 100 | . 64 36 Missed 21 | . 10 11 Hits 79 | . 54 25 Projectile 79 | . 54 25 Critical Strikes 2 | . 1 1 Damage Taken 1198 | . 680 518 Core 265 | . 164 101 Absorbed by Shields . | . . . Core Remaining (%) 100 | 100 . . Volleys Fired 88 | 12 50 26 Largest 2 | 2 2 2 Hottest 120 | 40 80 120 Shots Fired 167 | 24 91 52 Gun 76 | 24 52 . Cannon 91 | . 39 52 Launcher . | . . . Special . | . . . Kinetic 76 | 24 52 . Thermal 91 | . 39 52 Explosive . | . . . Electromagnetic . | . . . Robot Hit Streak 9 | 6 9 7 Robot Miss Streak 5 | 2 5 1 Penetration Max . | . . . Secondary Targets . | . . . Shots Hit Robots 112 | 17 56 39 Core Hits 37 | 4 26 7 Critical Kills 1 | . . 1 Critical Parts Destroyed 1 | . 1 . Critical Strikes 2 | . 1 1 Meltdown 1 | . . 1 Destroy 1 | . 1 . Melee Attacks . | . . . Impact . | . . . Slashing . | . . . Piercing . | . . . Sneak Attacks . | . . . Combat Hostiles . | . . . Follow-up Attacks . | . . . Damage Inflicted 1729 | 213 834 682 Guns 604 | 213 391 . Cannons 1125 | . 443 682 Explosions . | . . . Melee . | . . . Ramming . | . . . Kinetic 604 | 213 391 . Thermal 1125 | . 443 682 Explosive . | . . . Electromagnetic . | . . . Impact . | . . . Slashing . | . . . Piercing . | . . . Highest Corruption . | . . . Average Corruption . | . . . Corruption Purged . | . . . Corruption Blocked . | . . . Overload Shots . | . . . Overflow Damage 2 | . 2 . Projectiles 2 | . 2 . Explosions . | . . . Melee . | . . . Knockbacks . | . . . Impact . | . . . Kinetic . | . . . Secondary . | . . . Self-Inflicted Damage . | . . . Shots . | . . . Rammed 1 | . 1 . Targets Rammed 1 | . 1 . Kicked . | . . . Crushed . | . . . Highest Temperature 231 | . 231 . Average Temperature 87 | . 87 . Received Heat Transfer 477 | . 372 105 Effects 2 | . 2 . Energy Bleed 1 | . 1 . Interference 1 | . 1 . Siege Activations . | . . . Martial Activations . | . . . Shielding Activations . | . . . Robots Disrupted . | . . . Combat Hostiles . | . . . Robots Corrupted . | . . . Combat Hostiles . | . . . Parts Fried . | . . . Impact Corruptions . | . . . Robots Melted 1 | . . 1 Combat Hostiles 1 | . . 1 Parts Melted 5 | . . 5 Heat Transferred 2368 | . 925 1443 Parts Sabotaged . | . . . Parts Stolen . | . . . Parts Stripped . | . . . Power Chain Reactions . | . . . Alert | -11 -10 -10 ------- Run | Yrd Mat Sub Maximum Alert Level . | . . . Low Security (%) 100 | 100 100 . Level 1 . | . . . Level 2 . | . . . Level 3 . | . . . Level 4 . | . . . Level 5 . | . . . High Security . | . . . Max Security . | . . . Peak Influence 149 | 5 149 . Initial 3 | . 3 . Average 51 | 1 56 . Influence Increases 457 | 15 412 30 Destroy 0b10 Robot/C 260 | . 240 20 Destroy 0b10 Robot/NC 45 | 15 30 . Destroy Leader 62 | . 52 10 Successful Hack 30 | . 30 . Select Force Hacks 30 | . 30 . Disable Machine 15 | . 15 . Lose Combat Pursuer 15 | . 15 . Influence Decreases 457 | 10 405 42 Entered New Map 9 | . 2 7 Time Decay 418 | 10 383 25 Lost Part 30 | . 20 10 Squads Dispatched 3 | . 3 . Investigation 1 | . 1 . Extermination . | . . . Reinforcement 2 | . 2 . Assault . | . . . Garrison . | . . . Intercept . | . . . Searches Triggered . | . . . Construction Impeded . | . . . Haulers Reinforced . | . . . Active Scanning Responses . | . . . Cargo Convoy Interrupts . | . . . Stealth | -11 -10 -10 --------- Run | Yrd Mat Sub Distress Signals 1 | . 1 . Communications Jammed . | . . . Distress Signals . | . . . Times Spotted 29 | . 23 6 Peak Tracking Total 6 | . 6 2 Tactical Retreats 1 | . 1 . Traps | -11 -10 -10 ------- Run | Yrd Mat Sub Traps Triggered . | . . . Indirectly . | . . . Trap Hack Attempts . | . . . Triggered . | . . . Disarmed . | . . . Reprogrammed . | . . . Reused . | . . . Traps Extracted . | . . . Installed . | . . . Triggered . | . . . Machines | -11 -10 -10 ---------- Run | Yrd Mat Sub Machines Disabled 1 | . 1 . Max in Single Turn 1 | . 1 . Machines Repaired . | . . . Machines Dismantled . | . . . Machines Sabotaged . | . . . Overloaded Fab Kills . | . . . Hacking | -11 -10 -10 --------- Run | Yrd Mat Sub Machines Accessed 8 | . 8 . Terminals 6 | . 6 . Fabricators . | . . . Repair Stations 1 | . 1 . Recycling Units 1 | . 1 . Scanalyzers . | . . . Garrison Access . | . . . Total Hacks 22 | . 22 . Successful 13 | . 13 . Failed 9 | . 9 . Catastrophic . | . . . Database Lockouts . | . . . Manual 21 | . 21 . Terminals 19 | . 19 . Fabricators . | . . . Repair Stations 1 | . 1 . Recycling Units 2 | . 2 . Scanalyzers . | . . . Garrison Access . | . . . Terminal Hacks 3 | . 3 . Robot Analysis 1 | . 1 . Terminal Index 1 | . 1 . Locate Traps 1 | . 1 . Fabricator Hacks . | . . . Repair Station Hacks . | . . . Recycling Unit Hacks . | . . . Scanalyzer . | . . . Garrison Access Hacks . | . . . Unauthorized Hacks 9 | . 9 . Terminals 8 | . 8 . Botnet 3 | . 3 . Skim 5 | . 5 . Fabricators . | . . . Repair Stations . | . . . Recycling Units 1 | . 1 . Tunnel 1 | . 1 . Scanalyzers . | . . . Garrison Access . | . . . Data Cores Recovered 1 | . 1 . Used . | . . . Hacking Detections 8 | . 8 . Full Trace Events . | . . . Feedback Events . | . . . Feedback Blocked . | . . . Robot Schematics Acquired . | . . . Robots Built . | . . . Authchips . | . . . Time . | . . . Total Robot Build Rating . | . . . Part Schematics Acquired . | . . . Parts Built . | . . . Authchips . | . . . Time . | . . . Total Part Build Rating . | . . . Parts Repaired . | . . . Time . | . . . Parts Recycled . | . . . Recycled Matter . | . . . Retrieved Matter . | . . . Retrieved Components . | . . . Parts Scanalyzed . | . . . Part Schematics Acquired . | . . . Parts Damaged . | . . . Bothacking | -11 -10 -10 ------------ Run | Yrd Mat Sub Used RIF Installer . | . . . Robots Hacked . | . . . Non-combat . | . . . Combat . | . . . Robot Hacks Applied . | . . . Relay Couplers Released . | . . . Fabnet Peak Effective % . | . . . Robots Rewired . | . . . Allies Hacked . | . . . Hacks Repelled . | . . . Allies | -11 -10 -10 -------- Run | Yrd Mat Sub Total Allies . | . . . Largest Group . | . . . Highest-Rated Group . | . . . Highest-Rated Ally . | . . . Total Orders . | . . . Ally Attacks . | . . . Total Damage . | . . . Kills . | . . . Allies Corrupted . | . . . Allies Melted . | . . . Intel | -11 -10 -10 ------- Run | Yrd Mat Sub Active Infowar (turns) 404 | 9 395 . Seismic 404 | 9 395 . Robot Analysis Total 1 | . 1 . Derelict Logs Recovered . | . . . Drone Launches . | . . . Drone Recoveries . | . . . Exploration | -11 -10 -10 ------------- Run | Yrd Mat Sub Turns Passed 1752 | 99 1100 553 Spaces Moved 842 | 47 581 214 Core 2 | 2 . . Treads 74 | 7 67 . Legs . | . . . Wheels 766 | 38 514 214 Hover . | . . . Flight . | . . . Fastest Speed 50 | 50 100 200 Average Speed 154 | 106 136 214 Slowest Speed 240 | 160 240 215 Overloaded Moves . | . . . Propulsion Burnouts . | . . . Robots Hopped . | . . . Potential Cave-ins . | . . . Cave-ins Triggered . | . . . Exploration Rate (%) 38 | 4 92 19 Regions Visited 2 Branch Regions 1 Pre-discovered Areas 3 | . 3 . Known Exits Taken 1 | . 1 . Unknown Exits Taken 1 | 1 . . Scrap Searched . | . . . Spaces Dug . | . . . Terrain Destroyed . | . . . Melee . | . . . Projectile . | . . . AOE . | . . . Terrain Rammed . | . . . Walls Destroyed . | . . . Machines Disabled . | . . . Actions | -11 -10 -10 --------- Run | Yrd Mat Sub Total 1118 | 68 796 254 Wait 148 | . 139 9 Move 841 | 46 581 214 Hop . | . . . Pick Up 12 | 4 8 . Fast Attach 11 | 6 5 . Attach 5 | . 2 3 Detach 2 | . 2 . Swap 8 | . 6 2 Drop 3 | . 3 . Fire 88 | 12 50 26 Melee . | . . . Ram . | . . . Kick . | . . . Crush . | . . . Escape Stasis . | . . . Rewire . | . . . Trap . | . . . Miscellaneous . | . . . Route ------- -11/Scrapyard -10/Materials (discovered 5 exits: *Mat x3 / Min / *Sub) -10/Subcaves (discovered 2 exits: *Mat x2) History --------- Turn | Location | Event 6 | -11/Scrapyard | Discovered new exit (range 15) 100 | -11/Scrapyard | Entered Materials 302 | -10/Materials | Build established: Mutant 426 | -10/Materials | Discovered new exit (range 3) 565 | -10/Materials | Core integrity fell below 50% 809 | -10/Materials | Loaded intel: 27 trap records 822 | -10/Materials | Discovered new exit (range 12) 887 | -10/Materials | Learned location of Subcaves (-10) 992 | -10/Materials | Discovered new exit (range 6) 1009 | -10/Materials | Identified exit to Materials 1009 | -10/Materials | Identified exit to Mines 1009 | -10/Materials | Identified exit to Subcaves 1054 | -10/Materials | Learned location of 1 exit from Storage 1146 | -10/Materials | Learned Materials trap positions 1188 | -10/Materials | Learned location of 1 exit from Recycling 1200 | -10/Materials | Derelicts attacked the area 1200 | -10/Materials | Entered Subcaves 1201 | -10/Subcaves | Identified exit to Materials 1363 | -10/Subcaves | Core integrity fell below 20% 1753 | -10/Subcaves | Destroyed by K1-2ML(R) with Subdweller Beam Cannon Last Messages --------------- 01304_ Sub. Monowheel melted. 01304_ QF-BVH(R) destroyed. 01308_ Acquired 10 matter. 01365_ EJ-KAV(R) suffers critical hit (Meltdown). 01365_ Sub. Optics melted. 01365_ Sub. Power Source melted. 01365_ Disposable Heat Sink melted. 01369_ Wheel destroyed. 01374_ GI-ZEJ(R) affixes Scrap Shield Fragment to Scrap Shield. 01377_ Sub. Power Source melted. 01377_ GI-ZEJ(R) destroyed. 01381_ Acquired 10 matter. 01382_ Subatomizers dissect the Sub. Machine Gun. 01477_ Subatomizers dissect the Sub. Machine Gun, destroying it. 01740_ A thin wall crumbles away, revealing a door. Map ----- +----------------------------------------------------+ | ?????????????????????## #?????# #??? | | ?????????????????????# #?????### #??? | | ?????????????????????# ##???????# ####??? | | ?????????????????????# ######????????# #?????? | | ?????????????????????# #?????????????# #?????? | | ?????????????????????# #?????????????# #?????? | | ?????????????????????# ##?????????????# #?????? | | ?????????????????????## #??????????????## ##????? | | ??????????????????????###?????????????#### ###??? | | ?????????????????????????????##??????? ### ##?? | | ????????????????????????????? #??????? #?# ### | | ????????????????????????????? #?????? #### | | ????????????????????????????? ??????# #### | | ???????????????????????????## ???### ### | | ??????????????????????????## ???## ### ## | | ??????????????????????????# ???# ## # | | ??????????????????????????# #???# ## | | ??????????????????????????# ##?## #?# % | | ??????????????????#"?##???# ### #???# | | ????????????????### ## #??# #### #???# | | ???????????? ??# # ### #??# ##???#### | | ?????????????# # #### ######## | | ????????????## < # # ## # | | ????????????# # | | ???????????# R # | | ???????????# ##### @ ## | | ????????????????????## ##### ### | | ?????????????????????## #??# #?## | | ??????????????????????# #??### ##???## | | ??????????????????????## #????# ## ##?????? | | ???????????????????????## ????# #####??????? | | ????????????????????????# ????# #??????????? | | ????????????????????????# ???### #??????????? | | ????????????????????????## #?????#####??????????? | | ??????????????????????????###????????????????????? | | ?????????????????????????????????????????????????? | | ?????????????????????????????????????????????????? | | ?????????????????????????????????????????????????? | | ?????????????????????????????????????????????????? | | ?????????????????????????????????????????????????? | | ?????????????????????????????????????????????????? | | ?????????????????????????????????????????????????? | | ?????????????????????????????????????????????????? | | ?????????????????????????????????????????????????? | | ?????????????????????????????????????????????????? | | ?????????????????????????????????????????????????? | | ?????????????????????????????????????????????????? | | ?????????????????????????????????????????????????? | | ?????????????????????????????????????????????????? | | | +----------------------------------------------------+ Best States ------------- Heat Dissipation 39 Energy Generation 10 Energy Capacity 250 Matter Stores 300 Matter Capacity 300 Sight Range 16 Terrain Scan Density 10 Evasion (%) 40 Recoil Reduction 1 Item Schematics ----------------- None Robot Schematics ------------------ None Fabricated ------------ Nothing Repaired ---------- Nothing Alien Tech Used ----------------- None Achievements -------------- None Challenges ------------ None Game ------ Seed AbsorptionDroneShredder Manual? 0 Play Time 00:18:21 Cumulative 348.2 hours Start 2025.07.18 @ 23:18:34 End 2025.07.19 @ 13:14:17 Sessions 4 Manual Loads 0 Difficulty Rogue Special Mode None Game No. 171 Rogue 171 Adventurer 0 Explorer 0 Win Type - Total 23 Types 8/1/5/1/5/1/0/1/0/1 Lore% 90 Gallery% 79 Achievement% 76 Wizard Run 0 Options --------- Layout 1 ASCII 0 Keyboard 0 Movement Numpad Keybinds 0 Fullscreen 1 Font 24/Smallcaps Map View 50x35 Zoom Use 0% Tactical HUD 1 Map Filters NONE Filters NONE Steam 1 RUN: 2c75fc09-0149-4b5d-a28c-b0c3b2397281